[Event "WALTON 1st Div Women League 2023"]
[Site "Dhaka"]
[Date "2023.03.24"]
[Round "3.11"]
[White "Neelava, Choudhury"]
[Black "Parveen, Tanima"]
[Result "0-1"]
[ECO "C78"]
[WhiteElo "1522"]
[BlackElo "1960"]
[Annotator "TA"]
[PlyCount "66"]
[EventDate "2023.03.22"]
[EventType "team-tourn"]
[EventCountry "BAN"]
[SourceTitle "playchess.com"]
[Source "ChessBase"]
[SourceQuality "1"]
[TimeControl "5400+30"]

{[%evp 17,66,77,78,30,37,32,164,152,227,235,229,216,225,227,203,222,224,187,287,232,332,308,318,0,0,34,29,0,0,0,0,0,0,-320,-322,-477,-458,-545,-537,-695,-693,-693,0,-544,-523,-6323,-950,-29981,-29982,-29982,-29983]} 1. e4 {[%emt 0:07:35]} e5 {[%emt 0:00:08]} 2. Nf3 {[%emt 0:00:12]} Nc6 {[%emt 0:00:09]} 3. Bb5 {[%emt 0:00:30][%cal Bf1b5,Bb5a4,Ba4b3,Bb3d5][%mdl 32]} a6 {[%emt 0:00:09]} 4. Ba4 {[%emt 0:00:03]} Nf6 {[%emt 0:00:13]} 5. O-O {[%emt 0:00:06]} b5 {[%emt 0:00:16]} 6. Bb3 {[%emt 0:00:05]} Bc5 {[%emt 0:00:25]} 7. c3 {[%emt 0:00:47]} d6 {[%emt 0:00:33]} 8. d4 {[%emt 0:00:54]} exd4 {[%emt 0:02:01]} 9. cxd4 {[%emt 0:00:06]} Bb6 {[%emt 0:00:04]} 10. Bg5 {[%emt 0:02:29] C78: Ruy Lopez: Archangelsk and Möller Defences.} (10. Nc3 $16) 10... Bg4 $11 {[%emt 0:04:32]} 11. Bd5 {[%emt 0:02:44]} Qd7 {[%emt 0:10:20]} (11... Nxd4 $1 $14 12. Bxa8 Qxa8) 12. Bxf6 $18 {[%emt 0:09:30] White is clearly better.} Bxf3 {[%emt 0:03:42]} (12... gxf6 $16 13. Qc1 Ne7) 13. Qxf3 {[%emt 0:05:05]} (13. gxf3 gxf6 14. Bxc6 Qxc6 $14) 13... gxf6 {[%emt 0:00:49] [#]} 14. e5 $146 {[%emt 0:09:24]} (14. Qxf6 Bxd4 15. e5 Bxe5 $11) ({Stronger than} 14. Qc3 Nxd4 15. Kh1 c6 $17) ({Predecessor:} 14. Rc1 Nxd4 15. Qxf6 Ne2+ 16. Kh1 Bd4 17. e5 Bxe5 18. Qf3 Nd4 19. Qe3 O-O-O 20. f4 Bxf4 21. Qxf4 {1-0 Pavel,M (2000)-Hatala,C Eger Agria op 2004 (2)}) 14... Nxd4 {[%emt 0:00:49]} 15. Qxf6 {[%emt 0:03:44]} O-O {[%emt 0:02:57]} 16. Bxa8 {[%emt 0:01:27]} Rxa8 {[%emt 0:00:02]} 17. Nc3 {[%emt 0:01:14]} dxe5 {[%emt 0:06:29]} (17... Qe6 $142 18. Rae1 d5) 18. Qxe5 {[%emt 0:03:32] [#] And now Nd5 would win.} Re8 {[%emt 0:05:36]} (18... Qe6 {was called for.} 19. Rae1 c6 20. Qg3+ Qg6) 19. Qg5+ {[%emt 0:01:22]} Kh8 {[%emt 0:03:51][%cal Od4f3]} 20. Rfe1 $2 {[%emt 0:00:51]} ({Better is} 20. Nd5 $18 {Black must now prevent Nf6.} Qd8 21. Qxd8 Rxd8 22. Nxb6) 20... Nf3+ $1 $14 {[%emt 0:03:03]} 21. gxf3 {[%emt 0:00:19]} Rg8 {[%emt 0:00:07]} 22. Qxg8+ {[%emt 0:00:53]} (22. Qg3 $5) 22... Kxg8 {[%emt 0:00:01]} 23. Rad1 {[%emt 0:04:32]} Qf5 {[%emt 0:02:45]} 24. Nd5 {[%emt 0:02:11] [#] Strongly threatening Ne7+.} Bc5 {[%emt 0:01:52]} 25. Nxc7 $2 {[%emt 0:09:57][%mdl 8192]} (25. b4 $11 {and White has nothing to worry.} Bd6 26. Re8+ Kg7 27. Kg2) 25... Qxf3 $19 {[%emt 0:03:10]} 26. Re8+ {[%emt 0:03:34]} (26. Rd8+ {was necessary.} Kg7 27. Rd2) 26... Kg7 {[%emt 0:00:30]} 27. Rf1 {[%emt 0:01:04]} Qc6 {[%emt 0:10:23]} 28. Rc8 {[%emt 0:03:52]} Qg6+ {[%emt 0:03:37]} 29. Kh1 {[%emt 0:00:25] Threatens to win with Rg1.} Qc6+ {[%emt 0:07:49]} 30. Kg1 $1 {[%emt 0:00:11] aiming for Ne8+.} ({Not} 30. f3 $2 Kh6 31. a4 Bb6 32. axb5 axb5 $19) 30... Kh6 {[%emt 0:00:42] ( -> ...Qg6+)} 31. Rd1 {[%emt 0:16:22]} Qf3 {[%emt 0:02:28]} (31... Qf6 $142 32. Rd6 Qxd6) 32. Rf1 {[%emt 0:00:48]} Qg4+ {[%emt 0:00:12]} 33. Kh1 {[%emt 0:00:11]} Qxc8 {[%emt 0:00:07] An exciting game.   Weighted Error Value: White=1.05/Black=0.64} 0-1

[Event "WALTON 1st Div Women League 2023"]
[Site "Dhaka"]
[Date "2023.03.24"]
[Round "3.12"]
[White "Varshini V Kundar"]
[Black "Kishoara, Shajrin Evana"]
[Result "1-0"]
[ECO "B23"]
[WhiteElo "1096"]
[BlackElo "1544"]
[Annotator "NA RC COMBH"]
[PlyCount "59"]
[EventDate "2023.03.22"]
[EventType "team-tourn"]
[EventCountry "BAN"]
[SourceTitle "playchess.com"]
[Source "ChessBase"]
[SourceQuality "1"]
[TimeControl "5400+30"]

1. e4 {[%emt 0:00:07]} c5 {[%emt 0:00:21]} 2. Nc3 {[%emt 0:00:22]} e6 {[%emt 0:01:49]} 3. g3 {[%emt 0:00:26]} Nc6 {[%emt 0:00:47]} 4. Bg2 {[%emt 0:00:06]} Nf6 {[%emt 0:00:56]} 5. d3 {[%emt 0:00:50]} d6 {[%emt 0:01:08]} 6. Nge2 {[%emt 0:00:24]} Be7 {[%emt 0:04:17]} 7. O-O {[%emt 0:00:35]} e5 {[%emt 0:01:54]} 8. f4 {[%emt 0:01:19]} exf4 {[%emt 0:05:02]} 9. Nxf4 {[%emt 0:02:49]} Bg4 {[%emt 0:01:08]} 10. Qe1 {[%emt 0:03:56]} Nd4 {[%emt 0:05:07]} 11. Qf2 {[%emt 0:00:42]} Rb8 {[%emt 0:04:01]} 12. h3 {[%emt 0:03:45]} Be6 {[%emt 0:05:30]} 13. Nd1 {[%emt 0:03:35]} O-O {[%emt 0:02:33]} 14. Ne3 {[%emt 0:05:26]} b5 {[%emt 0:04:01]} 15. c3 {[%emt 0:02:29]} Nc6 {[%emt 0:01:54]} 16. Rd1 {[%emt 0:01:43]} Qb6 {[%emt 0:02:45]} 17. g4 {[%emt 0:04:28]} Ne5 {[%emt 0:06:21]} 18. d4 {[%emt 0:10:48]} cxd4 {[%emt 0:03:01]} 19. cxd4 {[%emt 0:00:05]} Nc4 {[%emt 0:00:26]} 20. Nf5 {[%emt 0:03:40]} Qd8 {[%emt 0:05:35]} 21. b3 {[%emt 0:08:05]} Na5 {[%emt 0:04:33]} 22. Be3 {[%emt 0:01:46]} a6 {[%emt 0:03:10]} 23. g5 {[%emt 0:06:40]} Nd7 {[%emt 0:01:45]} 24. Nxe7+ {[%emt 0:00:59]} Qxe7 {[%emt 0:01:25]} 25. d5 {[%emt 0:00:08]} Nc5 {[%emt 0:04:37]} 26. dxe6 {[%emt 0:01:16]} Nxe6 {[%emt 0:00:30]} 27. Nd5 {[%emt 0:00:40]} Qe8 {[%emt 0:03:16]} 28. Rac1 {[%emt 0:00:19]} Rc8 {[%emt 0:03:24]} 29. Rxc8 {[%emt 0:00:13]} Qxc8 {[%emt 0:00:07]} 30. Ne7+ {[%emt 0:00:13]} 1-0

[Event "WALTON 1st Div Women League 2023"]
[Site "Dhaka"]
[Date "2023.03.24"]
[Round "3.13"]
[White "Jarin, Tasnim"]
[Black "Sidratul, Muntaha"]
[Result "1-0"]
[ECO "C50"]
[WhiteElo "1180"]
[BlackElo "1185"]
[Annotator "NA RC COMBH"]
[PlyCount "93"]
[EventDate "2023.03.22"]
[EventType "team-tourn"]
[EventCountry "BAN"]
[SourceTitle "playchess.com"]
[Source "ChessBase"]
[SourceQuality "1"]
[TimeControl "5400+30"]

1. e4 {[%emt 0:00:05]} e5 {[%emt 0:00:07]} 2. Nf3 {[%emt 0:00:07]} Nc6 {[%emt 0:00:15]} 3. Bc4 {[%emt 0:00:11]} Bc5 {[%emt 0:00:31]} 4. Nc3 {[%emt 0:00:25]} Nf6 {[%emt 0:00:15]} 5. d3 {[%emt 0:00:17]} d6 {[%emt 0:00:22]} 6. Bg5 {[%emt 0:00:20]} h6 {[%emt 0:00:53]} 7. Bh4 {[%emt 0:00:22]} Qe7 {[%emt 0:01:06]} 8. Nd5 {[%emt 0:00:36]} Qd8 {[%emt 0:01:58]} 9. Nxf6+ {[%emt 0:01:05]} gxf6 {[%emt 0:00:20]} 10. Nd2 {[%emt 0:01:08]} a6 {[%emt 0:01:15]} 11. Qf3 {[%emt 0:00:57]} Nd4 {[%emt 0:04:16]} 12. Qh5 {[%emt 0:02:31]} Qe7 {[%emt 0:03:01]} 13. O-O-O {[%emt 0:00:30]} Be6 {[%emt 0:00:50]} 14. Bxe6 {[%emt 0:02:37]} Qxe6 {[%emt 0:01:20]} 15. Kb1 {[%emt 0:03:12]} O-O-O {[%emt 0:02:42]} 16. Nf1 {[%emt 0:00:41]} Rdg8 {[%emt 0:08:04]} 17. Ne3 {[%emt 0:01:04]} Kb8 {[%emt 0:04:53]} 18. g3 {[%emt 0:01:57]} Nc6 {[%emt 0:04:50]} 19. Nd5 {[%emt 0:01:47]} f5 {[%emt 0:03:59]} 20. Bf6 {[%emt 0:01:17]} Rh7 {[%emt 0:02:17]} 21. Bh4 {[%emt 0:01:51]} Rf8 {[%emt 0:02:32]} 22. Nf6 {[%emt 0:00:26]} Rhh8 {[%emt 0:00:59]} 23. exf5 {[%emt 0:00:51]} Qc8 {[%emt 0:02:57]} 24. Ng4 {[%emt 0:03:02]} d5 {[%emt 0:03:40]} 25. Nxh6 {[%emt 0:01:59]} Nd4 {[%emt 0:01:58]} 26. Qg5 {[%emt 1:14:12]} Nf3 {[%emt 0:01:32]} 27. Qg4 {[%emt 0:00:00]} Nxh4 {[%emt 0:47:08]} 28. Qxh4 {[%emt 0:00:00]} Bxf2 {[%emt 0:00:00]} 29. Qf6 {[%emt 0:00:00]} Qe8 {[%emt 0:00:00]} 30. Ng4 {[%emt 0:00:00]} Bc5 {[%emt 0:00:00]} 31. Nxe5 {[%emt 0:00:00]} Be7 {[%emt 0:00:00]} 32. Qg7 {[%emt 0:00:00]} Rhg8 {[%emt 0:00:00]} 33. Qh6 {[%emt 0:00:00]} Rg5 {[%emt 0:00:00]} 34. Qh3 {[%emt 0:00:00]} f6 {[%emt 0:00:00]} 35. Ng6 {[%emt 0:00:00]} Rg8 {[%emt 0:00:00]} 36. Rde1 {[%emt 0:00:00]} Rg7 {[%emt 0:00:00]} 37. Qh6 {[%emt 0:00:00]} Rf7 {[%emt 0:00:00]} 38. Re6 {[%emt 0:00:00]} Rxf5 {[%emt 0:00:00]} 39. Rhe1 {[%emt 0:00:00]} Qd7 {[%emt 0:00:00]} 40. Nxe7 {[%emt 0:00:00]} Ka7 {[%emt 0:00:00]} 41. Qe3+ {[%emt 0:00:00]} d4 {[%emt 0:00:00]} 42. Qh6 {[%emt 0:00:00]} Qb5 {[%emt 0:00:00]} 43. Qh8 {[%emt 0:00:00]} b6 {[%emt 0:00:00]} 44. Nxf5 {[%emt 0:00:00]} Qxf5 {[%emt 0:00:00]} 45. Qd8 {[%emt 0:00:00]} Qc5 {[%emt 0:00:00]} 46. Re8 {[%emt 0:00:00]} Kb7 {[%emt 0:00:00]} 47. Qa8# {[%emt 0:00:00]} 1-0

[Event "WALTON 1st Div Women League 2023"]
[Site "Dhaka"]
[Date "2023.03.24"]
[Round "3.14"]
[White "Sonia, Akhter"]
[Black "Zowena, Mehbish"]
[Result "1-0"]
[ECO "D02"]
[WhiteElo "1180"]
[BlackElo "1121"]
[Annotator "NA RC COMBH"]
[PlyCount "127"]
[EventDate "2023.03.22"]
[EventType "team-tourn"]
[EventCountry "BAN"]
[SourceTitle "playchess.com"]
[Source "ChessBase"]
[SourceQuality "1"]
[TimeControl "5400+30"]

1. d4 {[%emt 0:00:04]} d5 {[%emt 0:00:05]} 2. Nf3 {[%emt 0:00:12]} Nf6 {[%emt 0:00:07]} 3. h3 {[%emt 0:00:04]} Nc6 {[%emt 0:00:11]} 4. Bg5 {[%emt 0:00:35]} h6 {[%emt 0:01:20]} 5. Bxf6 {[%emt 0:00:43]} exf6 {[%emt 0:00:41]} 6. c3 {[%emt 0:00:34]} Bf5 {[%emt 0:00:45]} 7. e3 {[%emt 0:00:24]} Bd6 {[%emt 0:00:51]} 8. Qa4 {[%emt 0:01:37]} Bd7 {[%emt 0:00:55]} 9. Qb5 {[%emt 0:00:45]} Nxd4 {[%emt 0:12:58]} 10. Qd3 {[%emt 0:01:49]} Nxf3+ {[%emt 0:00:32]} 11. gxf3 {[%emt 0:00:04]} c6 {[%emt 0:00:26]} 12. c4 {[%emt 0:02:26]} Bb4+ {[%emt 0:02:48]} 13. Nc3 {[%emt 0:03:18]} Be6 {[%emt 0:00:49]} 14. cxd5 {[%emt 0:01:25]} Bxd5 {[%emt 0:00:23]} 15. Ke2 {[%emt 0:08:40]} Bxc3 {[%emt 0:02:18]} 16. Qxc3 {[%emt 0:02:37]} b5 {[%emt 0:01:24]} 17. Rd1 {[%emt 0:08:49]} Qb6 {[%emt 0:02:07]} 18. a3 {[%emt 0:02:25]} a5 {[%emt 0:01:22]} 19. Qc2 {[%emt 0:02:31]} a4 {[%emt 0:00:36]} 20. Qc1 {[%emt 0:07:24]} Bc4+ {[%emt 0:00:49]} 21. Ke1 {[%emt 0:05:56]} Bd5 {[%emt 0:00:34]} 22. Be2 {[%emt 0:00:41]} b4 {[%emt 0:00:52]} 23. e4 {[%emt 0:04:00]} Bb3 {[%emt 0:01:32]} 24. Rd6 {[%emt 0:03:35]} Rc8 {[%emt 0:01:50]} 25. Kf1 {[%emt 0:01:15]} Qc7 {[%emt 0:02:20]} 26. Qc5 {[%emt 0:06:06]} O-O {[%emt 0:00:49]} 27. Rg1 {[%emt 0:04:46]} Be6 {[%emt 0:00:54]} 28. Rg3 {[%emt 0:01:24]} Rfd8 {[%emt 0:00:50]} 29. Rd3 {[%emt 0:04:18]} Rb8 {[%emt 0:01:02]} 30. Qe3 {[%emt 0:02:33]} g5 {[%emt 0:01:52]} 31. h4 {[%emt 0:02:01]} Qc8 {[%emt 0:01:15]} 32. Kg2 {[%emt 0:01:02]} Kh7 {[%emt 0:00:42]} 33. hxg5 {[%emt 0:00:54]} fxg5 {[%emt 0:00:29]} 34. f4 {[%emt 0:01:13]} f6 {[%emt 0:02:58]} 35. fxg5 {[%emt 0:00:28]} fxg5 {[%emt 0:00:12]} 36. Bh5 {[%emt 0:01:13]} Bc4 {[%emt 0:05:33]} 37. Rd4 {[%emt 0:02:24]} Qe6 {[%emt 0:02:46]} 38. Rf3 {[%emt 0:02:49]} Qe5 {[%emt 0:01:56]} 39. Rxc4 {[%emt 0:02:15]} Qxb2 {[%emt 0:07:21]} 40. Rxc6 {[%emt 0:02:17]} bxa3 {[%emt 0:01:27]} 41. Qa7+ {[%emt 0:01:40]} Rb7 {[%emt 0:03:27]} 42. Rf7+ {[%emt 0:01:09]} Rxf7 {[%emt 0:00:15]} 43. Qxf7+ {[%emt 0:01:13]} Qg7 {[%emt 0:00:24]} 44. Qf5+ {[%emt 0:02:08]} Kg8 {[%emt 0:01:27]} 45. Rg6 {[%emt 0:00:32]} Rf8 {[%emt 0:02:17]} 46. Qe6+ {[%emt 0:00:26]} Kh8 {[%emt 0:00:50]} 47. Rxg7 {[%emt 0:00:20]} Kxg7 {[%emt 0:00:07]} 48. Qg6+ {[%emt 0:00:50]} Kh8 {[%emt 0:00:11]} 49. Qxh6+ {[%emt 0:00:17]} Kg8 {[%emt 0:00:16]} 50. Qxg5+ {[%emt 0:00:10]} Kh8 {[%emt 0:00:32]} 51. Qe7 {[%emt 0:00:48]} Rg8+ {[%emt 0:00:15]} 52. Kh3 {[%emt 0:00:15]} a2 {[%emt 0:00:26]} 53. Qa3 {[%emt 0:00:26]} Ra8 {[%emt 0:00:31]} 54. Qxa2 {[%emt 0:00:09]} a3 {[%emt 0:00:15]} 55. f4 {[%emt 0:01:57]} Ra5 {[%emt 0:01:02]} 56. Kg4 {[%emt 0:00:48]} Ra4 {[%emt 0:00:22]} 57. e5 {[%emt 0:00:15]} Ra8 {[%emt 0:00:11]} 58. e6 {[%emt 0:00:16]} Rg8+ {[%emt 0:00:12]} 59. Kh4 {[%emt 0:00:38]} Rf8 {[%emt 0:00:41]} 60. Bf7 {[%emt 0:01:04]} Kg7 {[%emt 0:00:16]} 61. Qa1+ {[%emt 0:00:07]} Kh7 {[%emt 0:00:27]} 62. Qb1+ {[%emt 0:00:26]} Kg7 {[%emt 0:00:05]} 63. Qg6+ {[%emt 0:00:23]} Kh8 {[%emt 0:00:09]} 64. Qh6# {[%emt 0:00:22]} 1-0

[Event "WALTON 1st Div Women League 2023"]
[Site "Dhaka"]
[Date "2023.03.25"]
[Round "4.1"]
[White "Rashma, Alam"]
[Black "Sidratul, Muntaha"]
[Result "1-0"]
[ECO "C26"]
[WhiteElo "1047"]
[BlackElo "1185"]
[Annotator "NA RC COMBH"]
[PlyCount "115"]
[EventDate "2023.03.22"]
[EventType "team-tourn"]
[EventCountry "BAN"]
[SourceTitle "playchess.com"]
[Source "ChessBase"]
[SourceQuality "1"]
[TimeControl "5400+30"]

1. e4 {[%emt 0:06:46]} e5 {[%emt 0:00:08]} 2. d3 {[%emt 0:00:42]} Nf6 {[%emt 0:00:46]} 3. Nc3 {[%emt 0:00:47]} Bb4 {[%emt 0:00:30]} 4. Bd2 {[%emt 0:01:49]} c6 {[%emt 0:01:25]} 5. a3 {[%emt 0:00:15]} Ba5 {[%emt 0:00:17]} 6. b4 {[%emt 0:01:20]} Bc7 {[%emt 1:30:24]} 7. g3 {[%emt 0:01:36]} d5 {[%emt 0:00:00]} 8. Bg2 {[%emt 0:02:43]} Bg4 {[%emt 0:00:00]} 9. Bf3 {[%emt 0:02:09]} Bxf3 {[%emt 0:00:00]} 10. Nxf3 {[%emt 0:02:02]} Nbd7 {[%emt 0:00:00]} 11. Bg5 {[%emt 0:01:54]} h6 {[%emt 0:00:00]} 12. Bxf6 {[%emt 0:00:45]} Qxf6 {[%emt 0:00:00]} 13. exd5 {[%emt 0:01:08]} e4 {[%emt 0:00:00]} 14. Nxe4 {[%emt 0:01:01]} Qe7 {[%emt 0:00:00]} 15. O-O {[%emt 0:01:30]} O-O {[%emt 0:00:00]} 16. dxc6 {[%emt 1:12:03]} bxc6 {[%emt 0:05:00]} 17. Re1 {[%emt 0:00:00]} Qe6 {[%emt 0:00:00]} 18. Neg5 {[%emt 0:00:00]} Qg6 {[%emt 0:00:00]} 19. Ne4 {[%emt 0:00:00]} Rfe8 {[%emt 0:00:00]} 20. Qd2 {[%emt 0:00:00]} Qg4 {[%emt 0:00:00]} 21. Nh4 {[%emt 0:00:00]} Bd8 {[%emt 0:00:00]} 22. Ng2 {[%emt 0:00:00]} Ne5 {[%emt 0:00:00]} 23. Qe3 {[%emt 0:00:00]} Nf3+ {[%emt 0:00:00]} 24. Kh1 {[%emt 0:00:00]} Re5 {[%emt 0:00:00]} 25. Nf4 {[%emt 0:00:00]} Bg5 {[%emt 0:00:00]} 26. h3 {[%emt 0:00:00]} Qd7 {[%emt 0:00:00]} 27. Qxf3 {[%emt 0:00:00]} Be7 {[%emt 0:00:00]} 28. Kg2 {[%emt 0:00:00]} g5 {[%emt 0:00:00]} 29. Nh5 {[%emt 0:00:00]} Qf5 {[%emt 0:00:00]} 30. Qe2 {[%emt 0:00:00]} Qe6 {[%emt 0:00:00]} 31. f4 {[%emt 0:00:00]} gxf4 {[%emt 0:00:00]} 32. Nxf4 {[%emt 0:00:00]} Qf5 {[%emt 0:00:00]} 33. Rf1 {[%emt 0:00:00]} Qh7 {[%emt 0:00:00]} 34. Nh5 {[%emt 0:00:00]} Rf5 {[%emt 0:00:00]} 35. g4 {[%emt 0:00:00]} Rxf1 {[%emt 0:00:00]} 36. Rxf1 {[%emt 0:00:00]} Qg6 {[%emt 0:00:00]} 37. Nhf6+ {[%emt 0:00:00]} Kf8 {[%emt 0:00:00]} 38. Nd7+ {[%emt 0:00:00]} Ke8 {[%emt 0:00:00]} 39. Ne5 {[%emt 0:00:36]} Qe6 {[%emt 0:00:00]} 40. Nc4 {[%emt 0:03:55]} Kd7 {[%emt 0:00:00]} 41. Rf5 {[%emt 0:00:34]} Rf8 {[%emt 0:00:00]} 42. Re5 {[%emt 0:01:44]} Qg6 {[%emt 0:00:00]} 43. Qe3 {[%emt 0:00:34]} Ra8 {[%emt 0:00:00]} 44. Qd4+ {[%emt 0:00:21]} Ke8 {[%emt 0:00:00]} 45. Ncd6+ {[%emt 0:00:07]} Kf8 {[%emt 0:00:00]} 46. Rf5 {[%emt 0:00:55]} Bxd6 {[%emt 0:00:13]} 47. Nxd6 {[%emt 0:00:40]} Ke7 {[%emt 0:00:35]} 48. Qe5+ {[%emt 0:00:08]} Kf8 {[%emt 0:02:57]} 49. Nxf7 {[%emt 0:02:43]} Qg7 {[%emt 0:02:29]} 50. Nxh6+ {[%emt 0:01:04]} Qf6 {[%emt 0:00:28]} 51. Qxf6+ {[%emt 0:00:31]} Ke8 {[%emt 0:00:16]} 52. Re5+ {[%emt 0:01:18]} Kd7 {[%emt 0:00:14]} 53. Qe7+ {[%emt 0:00:29]} Kc8 {[%emt 0:00:30]} 54. Qe8+ {[%emt 0:00:21]} Kb7 {[%emt 0:00:19]} 55. Re7+ {[%emt 0:00:10]} Kb6 {[%emt 0:00:27]} 56. Qxa8 {[%emt 0:00:14]} Kb5 {[%emt 0:00:15]} 57. Rb7+ {[%emt 0:00:27]} Ka4 {[%emt 0:00:15]} 58. Qxa7# {[%emt 0:02:14]} 1-0

[Event "WALTON 1st Div Women League 2023"]
[Site "Dhaka"]
[Date "2023.03.25"]
[Round "4.2"]
[White "Sonia, Akhter"]
[Black "Sanjeedah, Khanam Mitul"]
[Result "1-0"]
[ECO "D02"]
[WhiteElo "1180"]
[BlackElo "1165"]
[Annotator "NA RC COMBH"]
[PlyCount "45"]
[EventDate "2023.03.22"]
[EventType "team-tourn"]
[EventCountry "BAN"]
[SourceTitle "playchess.com"]
[Source "ChessBase"]
[SourceQuality "1"]
[TimeControl "5400+30"]

1. d4 {[%emt 0:00:30]} d5 {[%emt 1:31:00]} 2. Nf3 {[%emt 0:00:23]} Nc6 {[%emt 0:00:00]} 3. a3 {[%emt 0:00:17]} Bf5 {[%emt 0:00:00]} 4. Bg5 {[%emt 0:00:41]} f6 {[%emt 0:00:00]} 5. Bh4 {[%emt 0:00:02]} Qd6 {[%emt 0:00:00]} 6. Bg3 {[%emt 0:01:20]} Qe6 {[%emt 0:00:00]} 7. e3 {[%emt 0:01:03]} a6 {[%emt 0:00:00]} 8. Nc3 {[%emt 0:01:35]} h5 {[%emt 0:00:00]} 9. h4 {[%emt 0:01:44]} Bg4 {[%emt 0:00:00]} 10. Be2 {[%emt 0:01:00]} Nh6 {[%emt 0:00:00]} 11. Bxc7 {[%emt 0:00:37]} Nf5 {[%emt 0:00:00]} 12. Qd3 {[%emt 0:03:02]} Rc8 {[%emt 0:00:00]} 13. Bf4 {[%emt 0:05:14]} Bxf3 {[%emt 0:00:00]} 14. Bxf3 {[%emt 0:00:47]} Nfxd4 {[%emt 0:00:00]} 15. Bxd5 {[%emt 0:01:12]} Qg4 {[%emt 0:00:00]} 16. Bg3 {[%emt 0:14:38]} Nf5 {[%emt 0:00:00]} 17. Bf3 {[%emt 0:02:00]} Qg6 {[%emt 0:00:00]} 18. O-O-O {[%emt 0:01:42]} Ne5 {[%emt 0:00:00]} 19. Bxe5 {[%emt 0:00:43]} fxe5 {[%emt 0:00:00]} 20. Qd7+ {[%emt 0:00:32]} Kf7 {[%emt 0:00:00]} 21. Bd5+ {[%emt 0:00:58]} Qe6 {[%emt 0:00:00]} 22. Qxe6+ {[%emt 0:00:44]} Ke8 {[%emt 0:00:00]} 23. Qxc8# {[%emt 0:00:09]} 1-0

[Event "WALTON 1st Div Women League 2023"]
[Site "Dhaka"]
[Date "2023.03.25"]
[Round "4.5"]
[White "Jannatul, Ferdous"]
[Black "Nazia, Jafrin Mohona"]
[Result "1-0"]
[ECO "D00"]
[WhiteElo "1697"]
[BlackElo "1206"]
[Annotator "NA RC COMBH"]
[PlyCount "37"]
[EventDate "2023.03.22"]
[EventType "team-tourn"]
[EventCountry "BAN"]
[SourceTitle "playchess.com"]
[Source "ChessBase"]
[SourceQuality "1"]
[TimeControl "5400+30"]

1. d4 {[%emt 0:00:06]} d5 {[%emt 0:09:55]} 2. Bf4 {[%emt 0:00:15]} Bf5 {[%emt 0:00:58]} 3. e3 {[%emt 0:00:09]} e6 {[%emt 0:00:28]} 4. c4 {[%emt 0:00:25]} Nf6 {[%emt 0:00:29]} 5. Nc3 {[%emt 0:01:07]} c5 {[%emt 0:01:31]} 6. Qb3 {[%emt 0:01:19]} b6 {[%emt 0:02:09]} 7. Nb5 {[%emt 0:00:56]} Nc6 {[%emt 0:01:27]} 8. Nc7+ {[%emt 0:00:30]} Kd7 {[%emt 0:01:24]} 9. Nxa8 {[%emt 0:00:38]} Qxa8 {[%emt 0:00:15]} 10. Nf3 {[%emt 0:00:27]} cxd4 {[%emt 0:04:40]} 11. exd4 {[%emt 0:03:44]} a5 {[%emt 0:07:57]} 12. a3 {[%emt 0:00:33]} Qb7 {[%emt 0:02:29]} 13. Rc1 {[%emt 0:01:17]} Qa7 {[%emt 0:02:47]} 14. Qa4 {[%emt 0:00:52]} Qb7 {[%emt 0:01:19]} 15. Ne5+ {[%emt 0:00:22]} Kc8 {[%emt 0:01:28]} 16. Nxc6 {[%emt 0:00:26]} Qd7 {[%emt 0:02:29]} 17. cxd5 {[%emt 0:01:19]} Kb7 {[%emt 0:02:59]} 18. Qb5 {[%emt 0:00:35]} Nxd5 {[%emt 0:01:50]} 19. Qa6# {[%emt 0:00:13]} 1-0

[Event "WALTON 1st Div Women League 2023"]
[Site "Dhaka"]
[Date "2023.03.25"]
[Round "4.6"]
[White "Jarin, Tasnim"]
[Black "Srija, Seshadri"]
[Result "0-1"]
[ECO "C50"]
[WhiteElo "1180"]
[BlackElo "2194"]
[Annotator "TA"]
[PlyCount "64"]
[EventDate "2023.03.22"]
[EventType "team-tourn"]
[EventCountry "BAN"]
[SourceTitle "playchess.com"]
[Source "ChessBase"]
[SourceQuality "1"]
[TimeControl "5400+30"]

{[%evp 11,63,7,11,-24,-24,-21,-18,-27,-15,-1,-2,-10,-5,-20,-27,-114,-111,-106,-109,-208,-198,-293,-301,-403,-335,-515,-510,-561,-533,-954,-703,-1097,-1070,-1098,-1071,-1679,-1686,-1658,-1636,-1610,-1524,-1910,-1896,-1854,-1599,-2071,-2005,-29995,-29996,-29996,-29997,-29997,-29998,-29999]} 1. e4 {[%emt 0:09:31]} e5 {[%emt 0:00:15]} 2. Nf3 {[%emt 0:00:12]} Nc6 {[%emt 0:00:07]} 3. Bc4 {[%emt 0:00:13]} Nf6 {[%emt 0:00:18]} 4. Nc3 {[%emt 0:00:33]} Bc5 {[%emt 0:01:00]} 5. d3 {[%emt 0:00:34]} h6 {[%emt 0:00:15]} 6. Be3 {[%emt 0:00:40]} Bb6 {[%emt 0:01:00]} 7. Na4 {[%emt 0:01:54] C50: Hungarian Defence and Giuoco Pianissimo.} Bxe3 {[%emt 0:02:30]} 8. fxe3 {[%emt 0:00:41]} d6 {[%emt 0:02:26]} 9. h3 {[%emt 0:02:13] [#] The position is equal.} Ne7 $146 {[%emt 0:03:07]} ({Predecessor:} 9... O-O 10. Nc3 Re8 11. Nd5 Nxd5 12. Bxd5 Be6 13. Qd2 Bxd5 14. exd5 Ne7 15. e4 Qd7 {½-½ Alonso Novas,M (1239)-Barreiro Rebolo,L (1044) Galicia-ch U12 2022 (8)}) 10. Nc3 {[%emt 0:02:01]} c6 {[%emt 0:00:37]} 11. d4 {[%emt 0:01:07]} Qc7 {[%emt 0:00:44]} 12. Qd2 {[%emt 0:05:11]} b5 {[%emt 0:02:56]} 13. Bb3 {[%emt 0:01:03] White is on the road to losing.} (13. Bd3 $11) 13... a5 {[%emt 0:05:20][%cal Ba7a5,Ba5a4][%mdl 32]} 14. a3 {[%emt 0:00:51]} Ba6 {[%emt 0:03:12] Threatens to win with ...0-0.} 15. Ne2 {[%emt 0:05:49]} (15. O-O $17) 15... Nxe4 $19 {[%emt 0:03:27]} 16. Qd3 {[%emt 0:05:32]} (16. Qd1 {was worth a try.}) 16... d5 {[%emt 0:01:14]} 17. Nxe5 {[%emt 0:01:10]} a4 {[%emt 0:00:17]} 18. Ba2 {[%emt 0:00:27] [#]} (18. Qxe4 $142 dxe4 19. Bxf7+ Kd8 20. O-O) 18... b4 $1 {[%emt 0:00:16][%mdl 512]} 19. Qd1 {[%emt 0:02:10]} (19. Bc4 Bxc4) 19... bxa3 {[%emt 0:01:09]} 20. bxa3 {[%emt 0:00:21]} Qa5+ {[%emt 0:00:12]} 21. Kf1 {[%emt 0:01:26]} Bxe2+ {[%emt 0:00:12][%mdl 64] Remove Defender} 22. Kxe2 {[%emt 0:00:40]} Nc3+ {[%emt 0:00:06] A dynamic duo of knights.} 23. Ke1 {[%emt 0:00:32]} Nxd1+ {[%emt 0:00:11]} 24. Kxd1 {[%emt 0:00:10]} Qc3 {[%emt 0:00:45][%csl LRa1,LRa3,LRe3]} 25. Rb1 {[%emt 0:00:54]} Qxa3 {[%emt 0:00:24] [#] ...Nf5 would be deadly.} 26. Ra1 {[%emt 0:01:17]} Nf5 {[%emt 0:01:34] Hoping for ...Ng3.} 27. Re1 {[%emt 0:00:44]} Qb2 {[%emt 0:01:18]} 28. Kd2 {[%emt 0:00:30]} Ng3 {[%emt 0:00:30] ( -> ...Ne4+)} 29. Nxc6 {[%emt 0:00:59]} Ne4+ {[%emt 0:00:18] Black mates.} 30. Kd3 {[%emt 0:00:59]} Qc3+ {[%emt 0:00:07]} 31. Ke2 {[%emt 0:00:22]} Qd2+ {[%emt 0:00:07]} 32. Kf1 {[%emt 0:00:16]} Qf2# {[%emt 0:00:04] Weighted Error Value: White=1.65/Black=0.41} 0-1